bitfinex/quotes_SOLUSD_20260308
["timestamp","ask_amount","ask_price","bid_price","bid_amount"]
[1772988635803,0.3,81.409,81.396,1e-08]
[1772988636783,12.28380503,81.408,81.396,1e-08]
[1772988641200,0.28432314,81.427,81.396,1e-08]
[1772988641500,0.28432314,81.409,81.354,0.5]
[1772988641686,4.81883796,81.38,81.354,0.5]
[1772988641885,4.82477569,81.427,81.354,0.5]
[1772988641886,4.81883796,81.41,81.354,0.5]
[1772988642089,4.81883796,81.41,81.355,0.5]
[1772988642705,42.98275776,81.428,81.358,0.5]
[1772988642706,12.28078793,81.428,81.358,0.5]
[1772988642882,12.27927994,81.438,81.363,0.5]
[1772988643207,12.27927994,81.438,81.369,0.5]
[1772988643399,12.27927994,81.438,81.37,0.5]
[1772988644608,13.01453363,81.443,81.375,0.5]
[1772988644806,13.01453363,81.443,81.378,0.5]
[1772988645005,13.01453363,81.443,81.38,0.5]
[1772988645205,0.736,81.443,81.385,3.69383402]
[1772988645508,0.736,81.443,81.387,0.5]
[1772988648213,0.736,81.443,81.39,0.5]
[1772988648512,12.27867684,81.442,81.39,0.5]
[1772988651114,0.736,81.443,81.393,0.5]
[1772988653612,12.27608437,81.46,81.399,0.5]
[1772988656215,4.81883796,81.47,81.397,3.69383402]
[1772988656216,42.9611263,81.469,81.402,0.5]
[1772988657309,12.27460751,81.469,81.405,0.5]
[1772988657716,12.27023976,81.498,81.414,0.5]
[1772988657916,4.81883796,81.49,81.416,0.5]
[1772988658109,12.27159493,81.489,81.419,0.5]
[1772988658300,42.95058227,81.489,81.419,0.5]
[1772988658610,12.27159493,81.489,81.419,0.5]
[1772988658920,12.27159493,81.489,81.421,0.5]
[1772988660221,42.94583916,81.498,81.426,0.5]
[1772988660395,42.94583916,81.498,81.427,0.5]
[1772988663116,42.94583916,81.498,81.431,3.69383402]
[1772988663301,4.81883796,81.49,81.433,0.5]
[1772988663716,42.94583916,81.498,81.433,0.5]
[1772988665018,4.81883796,81.49,81.433,0.5]
[1772988666002,42.94583916,81.498,81.439,0.5]
[1772988666205,42.94583916,81.498,81.434,12.27988309]
[1772988666206,4.81883796,81.48,81.434,12.27988309]
[1772988666504,4.81883796,81.48,81.435,0.5]
[1772988667416,4.81883796,81.49,81.435,0.5]
[1772988667628,4.82195596,81.49,81.435,0.5]
[1772988667809,42.94583916,81.498,81.436,0.5]
[1772988668008,42.94583916,81.498,81.439,0.5]
[1772988669321,4.82195596,81.49,81.439,0.5]
[1772988670801,12.27039032,81.497,81.442,0.5]
[1772988672722,12.27039032,81.497,81.444,0.5]
[1772988675320,12.27039032,81.497,81.445,42.97378598]
[1772988675621,12.27039032,81.497,81.447,0.5]
[1772988677922,12.27039032,81.497,81.45,0.5]
[1772988679820,12.27039032,81.497,81.453,0.5]
[1772988680223,7.68417565,81.499,81.453,0.5]
[1772988680433,7.68417565,81.499,81.456,0.5]
[1772988680812,0.2,81.51,81.456,0.5]
[1772988681518,4.82195596,81.55,81.465,0.5]
[1772988681714,4.82195596,81.55,81.468,0.5]
[1772988681918,42.91898122,81.549,81.475,0.5]
[1772988682128,42.91898122,81.549,81.476,0.5]
[1772988682327,42.91898122,81.549,81.479,0.28432314]
[1772988682531,42.91898122,81.549,81.48,0.5]
[1772988684213,42.91371889,81.559,81.486,0.5]
[1772988686642,42.91371889,81.559,81.488,0.28432314]
[1772988686818,42.91371889,81.559,81.492,0.5]
[1772988688126,4.82195596,81.55,81.492,0.5]
[1772988689017,42.91898122,81.549,81.498,0.5]
[1772988689627,4.82195596,81.53,81.48,0.5]
[1772988689829,4.82195596,81.52,81.483,12.27240431]
[1772988691237,4.82195596,81.54,81.484,0.5]
[1772988692832,30.66017775,81.539,81.484,0.5]
[1772988693340,4.82195596,81.55,81.487,0.5]
[1772988693341,42.91898122,81.549,81.487,0.5]
[1772988693644,42.18154728,81.549,81.487,0.5]
[1772988694639,42.18154728,81.549,81.49,0.5]
[1772988695340,42.18154728,81.549,81.493,0.5]
[1772988695538,4.82195596,81.54,81.493,0.5]
[1772988697442,4.82195596,81.55,81.495,0.78432314]
[1772988697742,4.82195596,81.55,81.496,0.5]
[1772988699944,12.26136321,81.557,81.498,0.28432314]
[1772988700249,12.26136321,81.557,81.499,0.5]
[1772988701044,12.26136321,81.557,81.502,0.5]
[1772988702247,12.26136321,81.557,81.504,0.5]
[1772988703831,12.26136321,81.557,81.507,0.5]
[1772988704330,4.82195596,81.55,81.507,0.5]
[1772988706147,42.91898122,81.549,81.508,12.26873435]
[1772988706330,42.91898122,81.549,81.509,0.5]
[1772988706529,42.91898122,81.549,81.503,12.26935233]
[1772988706732,4.82195596,81.54,81.503,12.26935233]
[1772988708246,12.26406995,81.539,81.502,0.5]
[1772988709833,12.26256606,81.549,81.504,0.5]
[1772988712254,12.26256606,81.549,81.506,0.5]
[1772988713643,42.91898122,81.549,81.506,0.5]
[1772988714650,4.82195596,81.54,81.5,0.5]
[1772988715145,42.91898122,81.549,81.5,0.5]
[1772988715351,4.82195596,81.54,81.5,0.5]
[1772988717260,42.92424483,81.539,81.5,0.5]
[1772988717460,42.92424483,81.539,81.501,12.7697881]
[1772988717657,42.92424483,81.539,81.502,0.5]
[1772988718955,4.82195596,81.52,81.49,12.27144434]
[1772988719165,4.82195596,81.52,81.484,12.27224369]
[1772988719941,4.82195596,81.52,81.484,12.77224369]
[1772988720155,42.93477594,81.519,81.484,12.77224369]
[1772988720765,12.26597117,81.527,81.485,0.5]
[1772988720952,12.26406995,81.539,81.486,0.5]
[1772988722366,42.92424483,81.539,81.489,0.5]
[1772988724560,42.92424483,81.539,81.492,0.5]
[1772988727370,42.92424483,81.539,81.494,0.5]
[1772988729564,4.81558608,81.54,81.495,12.27069145]
[1772988729763,4.81558608,81.54,81.496,0.5]
[1772988730069,4.81558608,81.51,81.465,0.5]
[1772988730374,4.81558608,81.5,81.468,12.27473479]
[1772988730999,3.69383402,81.536,81.473,0.5]
[1772988731163,4.81558608,81.52,81.473,0.5]
[1772988731846,42.93477594,81.519,81.475,0.5]
[1772988736167,42.93477594,81.519,81.477,0.5]
[1772988737952,4.81558608,81.51,81.477,0.5]
[1772988748275,4.81558608,81.49,81.456,0.5]
[1772988748587,4.81558608,81.49,81.46,0.5]
[1772988748895,4.81558608,81.49,81.464,0.5]
[1772988749076,42.94004342,81.509,81.464,0.5]
[1772988749077,4.81558608,81.5,81.464,0.5]
[1772988749895,4.81558608,81.5,81.469,12.27446175]
[1772988750191,12.2700892,81.499,81.469,12.27446175]
[1772988752294,12.2700892,81.499,81.471,5.80485429]
[1772988754770,42.9453122,81.499,81.471,5.80485429]
[1772988756995,42.9453122,81.499,81.471,5.30485429]
[1772988760397,4.81558608,81.48,81.444,0.5]
[1772988761776,12.27310104,81.479,81.448,0.5]
[1772988763205,42.95585365,81.479,81.435,0.5]
[1772988764483,4.81558608,81.47,81.435,0.5]
[1772988766297,12.27460751,81.469,81.437,0.5]
[1772988767905,12.27460751,81.469,81.439,0.5]
[1772988769309,12.27460751,81.469,81.441,0.5]
[1772988771500,42.95690807,81.477,81.443,0.5]
[1772988771807,4.81558608,81.47,81.443,0.5]
[1772988775302,12.27460751,81.469,81.443,0.5]
[1772988777304,49.7,81.478,81.445,0.5]
[1772988777503,12.2734023,81.477,81.445,0.5]
[1772988777696,42.95690807,81.477,81.445,0.5]
[1772988778297,12.2734023,81.477,81.445,0.5]
[1772988779408,12.27258991,81.483,81.447,0.5]
[1772988779607,4.81558608,81.48,81.447,0.5]
[1772988781314,12.27310104,81.479,81.448,12.27777232]
[1772988781513,12.27310104,81.479,81.449,0.5]
[1772988784212,42.95058227,81.489,81.45,12.27747084]
[1772988784514,42.95058227,81.489,81.451,0.5]
[1772988786919,4.81558608,81.48,81.451,0.5]
[1772988787299,4.81558608,81.48,81.453,0.5]
[1772988787494,42.95058227,81.489,81.453,0.5]
[1772988790200,12.27189613,81.487,81.454,12.27686792]
[1772988790402,42.95163645,81.487,81.455,0.5]
[1772988791718,4.82215399,81.48,81.455,0.5]
[1772988792423,12.27310104,81.479,81.455,0.5]
[1772988793103,42.95585365,81.479,81.455,0.5]
[1772988796618,12.27310104,81.479,81.455,0.5]
[1772988797400,12.27310104,81.479,81.457,0.5]
[1772988800122,42.95585365,81.479,81.457,0.5]
[1772988801705,12.27310104,81.479,81.457,0.5]
[1772988804618,12.27310104,81.479,81.459,0.5]
[1772988804815,4.82215399,81.5,81.459,0.5]
[1772988805337,4.82215399,81.51,81.46,0.5]
[1772988806122,12.26858383,81.509,81.463,0.5]
[1772988806907,4.82215399,81.5,81.463,0.5]
[1772988807422,4.82215399,81.49,81.463,0.5]
[1772988808213,17.0937333,81.49,81.464,12.27536089]
[1772988808417,17.0937333,81.49,81.465,0.5]
[1772988809713,17.0937333,81.49,81.452,0.5]
[1772988810528,4.82215399,81.48,81.452,0.5]
[1772988811409,42.95019018,81.49,81.388,30.71705863]
[1772988811410,3.69383402,81.457,81.388,30.71705863]
[1772988811612,0.49638791,81.419,81.328,1.22958882]
[1772988811809,0.2,81.455,81.38,12.38788547]
[1772988812004,0.2,81.439,81.38,12.38788547]
[1772988812519,0.2,81.437,81.38,61.54015728]
[1772988812719,12.27927994,81.438,81.38,61.54015728]
[1772988813422,12.27927994,81.438,81.382,0.49131031]
[1772988815232,30.89565128,81.445,81.385,0.49131031]
[1772988815731,0.2,81.444,81.385,0.49131031]
[1772988817509,0.2,81.439,81.388,0.49131031]
[1772988820529,0.2,81.438,81.39,0.49131031]
[1772988820825,0.2,81.447,81.39,0.49131031]
[1772988823732,0.2,81.445,81.393,0.49131031]
[1772988825521,0.2,81.439,81.395,0.49131031]
[1772988827620,0.2,81.437,81.397,0.49131031]
[1772988830137,0.2,81.435,81.384,30.71836451]
[1772988830337,0.2,81.429,81.386,0.49131031]
[1772988830536,0.2,81.419,81.386,0.49131031]
[1772988831635,0.2,81.409,81.381,0.49131031]
[1772988832322,12.28380503,81.408,81.383,0.49131031]
[1772988832652,0.2,81.407,81.383,0.49131031]
[1772988833822,0.2,81.407,81.384,12.2874275]
[1772988834022,0.2,81.407,81.384,12.77873781]
[1772988834650,10.58477403,81.421,81.385,0.49131031]
[1772988834829,0.2,81.42,81.385,0.49131031]
[1772988835029,0.2,81.419,81.385,0.49131031]
[1772988836454,0.2,81.419,81.387,0.49131031]
[1772988836627,10.38477403,81.421,81.387,0.49131031]
[1772988836828,12.48199459,81.42,81.387,0.49131031]
[1772988837030,12.28199459,81.42,81.387,0.49131031]
[1772988837227,0.2,81.419,81.387,0.49131031]
[1772988838752,0.2,81.419,81.389,0.49131031]
[1772988840030,22.66670295,81.421,81.389,0.49131031]
[1772988840552,22.86670295,81.421,81.391,0.49131031]
[1772988841052,10.58477403,81.421,81.391,0.49131031]
[1772988841247,0.2,81.44,81.391,0.49131031]
[1772988841450,0.2,81.446,81.392,0.49131031]
[1772988841652,0.2,81.439,81.392,0.49131031]
[1772988841830,0.2,81.429,81.392,0.49131031]
[1772988842752,0.2,81.429,81.394,0.47741578]
[1772988843051,12.27976245,81.435,81.394,0.47741578]
[1772988843254,0.2,81.434,81.394,0.47741578]
[1772988846150,0.2,81.446,81.397,0.48716921]
[1772988848555,12.27822456,81.445,81.399,0.48716921]
[1772988850348,0.2,81.448,81.401,0.48716921]
[1772988850552,12.27792306,81.447,81.401,0.48716921]
[1772988851147,0.2,81.446,81.401,0.48716921]
[1772988852144,0.2,81.446,81.402,0.48716921]
[1772988852550,0.2,81.446,81.405,0.48716921]
[1772988853455,0.2,81.452,81.405,0.48716921]
[1772988855239,0.2,81.452,81.407,0.48716921]
[1772988855459,0.2,81.452,81.408,0.48716921]
[1772988856044,12.4773201,81.451,81.408,0.48716921]
[1772988856245,0.2,81.45,81.408,0.48716921]
[1772988858768,0.2,81.45,81.41,0.48716921]
[1772988860766,0.2,81.45,81.409,104.41106019]
[1772988860767,0.2,81.45,81.412,0.48716921]
[1772988861764,12.27755122,81.45,81.412,0.48716921]
[1772988861969,0.2,81.449,81.414,0.48716921]
[1772988863869,0.2,81.449,81.415,42.98962106]
[1772988864166,0.2,81.449,81.416,0.48716921]
[1772988865873,30.69094363,81.458,81.416,0.48716921]
[1772988866092,0.2,81.457,81.418,0.48716921]
[1772988866755,12.47641577,81.457,81.418,0.48716921]
[1772988866955,0.2,81.456,81.418,0.48716921]
[1772988867373,0.2,81.454,81.42,0.48716921]
[1772988870181,0.2,81.454,81.422,0.48716921]
[1772988871380,0.2,81.454,81.424,0.48716921]
[1772988872778,0.2,81.472,81.424,0.48716921]
[1772988872971,0.2,81.472,81.425,0.4887054]
[1772988873360,0.2,81.47,81.428,0.4887054]
[1772988875168,49.7,81.49,81.428,0.4887054]
[1772988875169,0.2,81.489,81.428,0.4887054]
[1772988875483,0.2,81.488,81.431,0.4887054]
[1772988876177,0.2,81.488,81.43,0.28432314]
[1772988876178,0.2,81.488,81.434,0.4887054]
[1772988876381,0.2,81.486,81.437,0.4887054]
[1772988876980,0.2,81.479,81.437,0.4887054]
[1772988878481,12.27325167,81.478,81.438,42.97747979]
[1772988878685,0.2,81.477,81.439,0.4887054]
[1772988879690,0.2,81.475,81.441,0.4887054]
[1772988881888,0.2,81.473,81.442,12.27867684]
[1772988882093,0.2,81.473,81.443,0.4887054]
[1772988883970,0.2,81.471,81.443,0.4887054]
[1772988884169,0.2,81.471,81.435,0.4887054]
[1772988886289,4.82580997,81.48,81.41,0.28432314]
[1772988886290,0.2,81.469,81.437,0.4887054]
[1772988887483,0.2,81.469,81.439,0.4887054]
[1772988889490,0.2,81.469,81.441,0.4887054]
[1772988890679,0.2,81.468,81.441,0.4887054]
[1772988892367,0.2,81.472,81.443,0.4887054]
[1772988894787,0.2,81.472,81.445,0.4887054]
[1772988896694,0.2,81.472,81.447,0.4887054]
[1772988898591,0.2,81.472,81.449,0.4887054]
[1772988899294,49.7,81.489,81.449,0.4887054]
[1772988899510,0.2,81.509,81.452,0.4887054]
[1772988899670,0.2,81.509,81.453,0.4887054]
[1772988900286,0.2,81.499,81.453,0.4887054]
[1772988900492,0.2,81.497,81.455,0.4887054]
[1772988901176,0.2,81.489,81.455,0.4887054]
[1772988901375,0.2,81.489,81.454,12.27686792]
[1772988902590,0.2,81.487,81.454,0.4887054]
[1772988903893,0.2,81.485,81.455,12.2767172]
[1772988904701,0.2,81.485,81.455,43.43661485]
[1772988904899,0.2,81.485,81.456,0.46810464]
[1772988907303,0.2,81.485,81.458,0.46810464]
[1772988908584,0.2,81.484,81.458,0.46810464]
[1772988910406,0.2,81.484,81.46,0.46810464]
[1772988912696,0.2,81.484,81.462,0.46810464]
[1772988913796,0.2,81.482,81.462,0.46810464]
[1772988914297,0.2,81.482,81.461,12.27581296]
[1772988917308,0.2,81.482,81.461,0.46810464]
[1772988919113,0.2,81.469,81.435,0.46810464]
[1772988919609,0.2,81.469,81.437,0.46810464]
[1772988919813,0.2,81.467,81.437,0.46810464]
[1772988920016,0.2,81.459,81.432,12.28009649]
[1772988922810,0.2,81.457,81.432,12.28009649]
[1772988923109,0.2,81.477,81.433,0.46810464]
[1772988923619,0.2,81.489,81.434,0.46810464]
[1772988923823,0.2,81.494,81.437,0.46810464]
[1772988924998,12.2709926,81.493,81.44,0.46810464]
[1772988925805,0.2,81.494,81.44,0.46810464]
[1772988926905,0.2,81.493,81.442,0.46810464]
[1772988928400,0.2,81.491,81.444,0.46810464]
[1772988929016,4.82094865,81.49,81.444,0.46810464]
[1772988929217,0.2,81.489,81.444,0.46810464]
[1772988931112,12.47174553,81.488,81.446,0.46810464]
[1772988932222,12.27174553,81.488,81.446,0.46810464]
[1772988932530,0.2,81.487,81.446,0.46810464]
[1772988934525,0.2,81.487,81.448,0.47360086]
[1772988937316,0.2,81.487,81.449,42.97167551]
[1772988937516,0.2,81.487,81.45,0.47360086]
[1772988940421,0.2,81.487,81.452,0.47360086]
[1772988943428,0.2,81.487,81.454,0.47360086]
[1772988945928,0.2,81.487,81.456,0.47360086]
[1772988949331,0.2,81.487,81.457,12.27641577]
[1772988949637,0.2,81.487,81.458,0.47360086]
[1772988951441,0.2,81.487,81.46,0.47360086]
[1772988952938,0.2,81.485,81.46,0.47360086]
[1772988953427,0.2,81.485,81.461,12.27581296]
[1772988953744,0.2,81.489,81.461,12.27581296]
[1772988954618,0.2,81.489,81.461,12.74941382]
[1772988954819,0.2,81.487,81.462,0.47360086]
[1772988955237,0.2,81.487,81.441,0.47360086]
[1772988961345,0.2,81.485,81.443,0.47360086]
[1772988963665,0.2,81.485,81.442,42.97536896]
[1772988963666,0.2,81.485,81.445,0.46453537]
[1772988964046,30.67597895,81.497,81.445,0.46453537]
[1772988964047,0.2,81.483,81.445,0.46453537]
[1772988965241,0.2,81.483,81.446,42.97325834]
[1772988965442,0.2,81.483,81.447,0.47435706]
[1772988967428,0.2,81.483,81.449,0.47435706]
[1772988970450,0.2,81.483,81.451,0.47435706]
[1772988970931,0.2,81.481,81.451,0.47435706]
[1772988972030,0.2,81.481,81.453,0.47435706]
[1772988975357,0.2,81.481,81.455,0.47435706]
[1772988979440,0.2,81.481,81.457,0.47435706]
[1772988980858,0.2,81.481,81.459,0.47435706]
[1772988982554,0.2,81.48,81.459,0.47435706]
[1772988983149,0.2,81.48,81.46,12.27596366]
[1772988983354,0.2,81.48,81.461,0.47435706]
[1772988983657,0.2,81.478,81.461,0.47435706]
[1772988986371,0.2,81.476,81.461,0.47435706]
[1772988992664,0.2,81.48,81.461,0.47435706]
[1772988993568,0.2,81.487,81.463,0.46848486]
[1772988994844,0.2,81.487,81.465,0.46848486]
[1772988996875,0.2,81.487,81.467,0.46848486]
[1772988997989,0.2,81.497,81.468,12.27475818]
[1772988998156,0.2,81.497,81.469,0.46848486]
[1772989000460,0.2,81.495,81.471,0.46848486]
[1772989002358,0.2,81.493,81.472,12.27415553]
[1772989002559,0.2,81.493,81.472,12.74264039]
[1772989003782,0.2,81.493,81.473,0.46848486]
[1772989004162,49.7,81.52,81.473,0.46848486]
[1772989004163,0.2,81.509,81.473,0.46848486]
[1772989004366,0.2,81.507,81.475,0.46848486]
[1772989004761,12.26873435,81.508,81.475,0.46848486]
[1772989004982,0.2,81.512,81.475,0.46848486]
[1772989005877,0.2,81.51,81.475,0.46848486]
[1772989006078,0.2,81.51,81.477,0.46848486]
[1772989006379,49.98432314,81.519,81.477,0.46848486]
[1772989006380,0.2,81.518,81.477,0.46848486]
[1772989008589,0.2,81.518,81.479,0.46848486]
[1772989008766,0.2,81.525,81.48,0.46848486]
[1772989008973,0.2,81.53,81.48,0.46848486]
[1772989010295,0.2,81.53,81.483,0.46848486]
[1772989010796,0.2,81.53,81.488,0.46848486]
[1772989010983,0.72100001,81.534,81.489,0.46848486]
[1772989011488,0.2,81.54,81.489,0.46848486]
[1772989012473,0.2,81.539,81.489,0.46848486]
[1772989012792,0.2,81.536,81.491,0.46848486]
[1772989013785,0.2,81.529,81.491,0.46848486]
[1772989014294,0.2,81.519,81.491,0.46848486]
[1772989014873,0.2,81.517,81.486,0.46848486]
[1772989015171,0.2,81.517,81.481,12.27279979]
[1772989015172,0.2,81.509,81.481,12.74128465]
[1772989016084,0.2,81.509,81.482,0.46848486]
[1772989016378,0.2,81.517,81.482,0.46848486]
[1772989016783,0.2,81.517,81.483,42.95374494]
[1772989017089,0.2,81.517,81.484,0.46848486]
[1772989019976,0.2,81.517,81.486,0.46848486]
[1772989020180,12.26610166,81.526,81.486,0.46848486]
[1772989020587,0.2,81.527,81.487,0.46848486]
[1772989020890,0.2,81.539,81.487,0.46848486]
[1772989021882,0.2,81.535,81.49,0.46848486]
[1772989026086,0.2,81.535,81.491,12.27129376]
[1772989026290,0.2,81.535,81.492,0.48193678]
[1772989027087,0.2,81.533,81.492,0.48193678]
[1772989028185,0.2,81.533,81.493,42.9484741]
[1772989028396,0.2,81.533,81.494,0.48193678]
[1772989029679,12.26428931,81.538,81.494,0.48193678]
[1772989029882,0.2,81.539,81.494,0.48193678]
[1772989030300,0.2,81.538,81.496,0.48193678]
[1772989032413,0.2,81.54,81.499,0.48193678]
[1772989035084,0.2,81.54,81.501,0.48193678]
[1772989035906,0.2,81.539,81.501,0.48193678]
[1772989038724,0.2,81.539,81.502,42.94373143]
[1772989038908,0.2,81.539,81.503,0.48193678]
[1772989042007,0.2,81.539,81.504,42.94267765]
[1772989042214,0.2,81.539,81.505,0.48193678]
[1772989044398,0.2,81.539,81.507,0.48193678]
[1772989046518,0.2,81.539,81.509,0.48193678]
[1772989048621,0.2,81.539,81.511,0.48193678]
[1772989051425,0.2,81.539,81.513,0.48193678]
[1772989054522,0.2,81.539,81.515,0.45860095]
[1772989058006,0.2,81.559,81.517,0.45860095]
[1772989058306,0.2,81.559,81.518,0.45860095]
[1772989059122,0.2,81.56,81.518,0.45860095]
[1772989059314,0.2,81.559,81.518,0.45860095]
[1772989059509,0.2,81.56,81.518,0.45860095]
[1772989059711,0.2,81.559,81.518,0.45860095]
[1772989060114,0.2,81.558,81.52,0.45860095]
[1772989060514,0.2,81.56,81.52,0.45860095]
[1772989061249,0.2,81.559,81.52,0.45860095]
[1772989061828,0.2,81.559,81.522,0.45860095]
[1772989062021,0.2,81.56,81.523,0.5]
[1772989062714,0.2,81.57,81.526,0.5]
[1772989063915,0.2,81.57,81.528,0.78432314]
[1772989064116,0.2,81.57,81.529,0.5]
[1772989066531,0.2,81.57,81.531,0.5]
[1772989069533,0.2,81.57,81.533,0.5]
[1772989069732,12.25955939,81.569,81.532,42.92793013]
[1772989069936,12.25955939,81.569,81.52,0.5]
[1772989070117,4.81271064,81.56,81.515,0.5]
[1772989071533,12.26106254,81.559,81.517,0.5]
[1772989073239,12.26106254,81.559,81.519,0.5]
[1772989075435,12.26106254,81.559,81.521,0.5]
[1772989076442,12.26106254,81.559,81.52,42.93424926]
[1772989076738,42.91371889,81.559,81.521,0.5]
[1772989077942,42.91371889,81.559,81.523,0.5]
[1772989080545,42.91371889,81.559,81.525,0.5]
[1772989081644,42.91371889,81.559,81.527,0.5]
[1772989084522,42.91371889,81.559,81.529,0.5]
[1772989084737,4.81271064,81.54,81.491,12.27129376]
[1772989084940,4.81271064,81.52,81.492,0.5]
[1772989086834,12.26707884,81.519,81.492,0.5]
[1772989087520,12.26707884,81.519,81.493,12.2709926]
[1772989088651,12.26707884,81.519,81.492,0.5]
[1772989088652,4.81271064,81.51,81.48,0.5]
[1772989088951,4.81271064,81.51,81.482,12.27264917]
[1772989089251,4.81271064,81.51,81.483,0.5]
[1772989090128,30.66401643,81.529,81.485,0.5]
[1772989090328,12.26507926,81.533,81.485,0.5]
[1772989091629,12.2643367,81.538,81.486,0.5]
[1772989092932,4.81271064,81.51,81.42,0.1]
[1772989093130,4.81271064,81.49,81.457,12.27641577]
[1772989093452,4.81271064,81.47,81.452,12.27703586]
[1772989094642,4.81271064,81.47,81.443,0.5]
[1772989095153,12.27460751,81.469,81.444,12.27837532]
[1772989096264,4.82366826,81.47,81.444,12.27837532]
[1772989096445,17.09815083,81.47,81.444,12.27837532]
[1772989097649,17.09815083,81.47,81.444,0.5]
[1772989099661,17.09815083,81.47,81.446,0.5]
[1772989100762,12.27448257,81.47,81.446,0.5]
[1772989101144,12.55742418,81.479,81.446,0.5]
[1772989101351,12.27310104,81.479,81.446,0.5]
[1772989101741,12.27310104,81.479,81.448,0.5]
[1772989105462,12.27310104,81.479,81.45,0.5]
[1772989108470,12.27310104,81.479,81.452,0.5]
[1772989110863,12.27310104,81.479,81.409,12.28355081]
[1772989110864,4.82366826,81.46,81.409,12.28355081]
[1772989111071,4.82366826,81.44,81.395,6.90864307]
[1772989111372,4.82366826,81.41,81.395,0.5]
[1772989111752,4.82366826,81.41,81.389,0.5]
[1772989112073,4.82366826,81.41,81.382,0.5]
[1772989112878,0.28432314,81.427,81.384,0.5]
[1772989112879,0.28432314,81.425,81.384,0.5]
[1772989113047,4.82366826,81.41,81.384,0.5]
[1772989113798,42.98381351,81.426,81.384,0.5]
[1772989113799,12.28108957,81.426,81.384,0.5]
[1772989114683,4.82366826,81.42,81.384,0.5]
[1772989117252,17.84237399,81.434,81.387,0.5]
[1772989118771,17.84237399,81.434,81.388,43.00388263]
[1772989118976,30.12240162,81.434,81.39,0.5]
[1772989120372,17.84237399,81.434,81.39,0.5]
[1772989120673,4.82366826,81.46,81.393,0.5]
[1772989120980,12.27611436,81.459,81.397,3.69383402]
[1772989121159,12.27611436,81.459,81.399,0.5]
[1772989125270,12.27611436,81.459,81.401,0.5]
[1772989128368,12.27611436,81.459,81.404,0.5]
[1772989128760,12.27611436,81.459,81.394,0.5]
[1772989128761,4.82366826,81.43,81.394,0.5]
[1772989129962,4.82366826,81.44,81.394,0.5]
[1772989130362,12.27912916,81.439,81.395,43.00018427]
[1772989130667,12.27912916,81.439,81.396,0.5]
[1772989132494,12.27912916,81.439,81.398,0.5]
[1772989135273,12.27912916,81.439,81.4,0.5]
[1772989137769,4.82366826,81.41,81.38,0.6]
[1772989137972,4.82366826,81.41,81.38,0.1]
[1772989139081,12.28365414,81.409,81.38,0.1]
[1772989139682,4.82366826,81.4,81.38,0.1]
[1772989140387,12.28365414,81.409,81.38,0.6]
[1772989140975,12.28365414,81.409,81.381,0.5]
[1772989141176,12.28365414,81.409,81.383,0.5]
[1772989141783,4.82366826,81.42,81.383,0.5]
[1772989142087,0.28432314,81.429,81.383,0.5]
[1772989142872,12.28108957,81.426,81.385,0.5]
[1772989143868,8.15921088,81.43,81.385,0.5]
[1772989143869,3.33554262,81.43,81.386,0.5]
[1772989144269,3.33554262,81.43,81.389,0.5]
[1772989145180,3.33554262,81.43,81.39,43.00282589]
[1772989145494,3.33554262,81.43,81.391,0.5]
[1772989146393,30.68656442,81.469,81.394,0.5]
[1772989146699,30.68656442,81.469,81.395,0.5]
[1772989146700,4.82366826,81.46,81.395,0.5]
[1772989147270,12.27611436,81.459,81.398,0.5]
[1772989149382,12.27611436,81.459,81.401,0.5]
[1772989149596,12.27611436,81.459,81.404,0.5]
[1772989150903,4.82366826,81.47,81.41,0.5]
[1772989152199,12.27460751,81.469,81.412,0.28432314]
[1772989152507,12.27460751,81.469,81.413,0.5]